bitfinex/quotes_ETHUSD_20251017
["timestamp","ask_amount","ask_price","bid_price","bid_amount"]
[1760683798073,0.4271,3818.0,3817.3,0.00571597]
[1760683798275,3.39400489,3817.9,3817.3,0.00571597]
[1760683798568,1.09323492,3818.0,3817.3,0.00571597]
[1760683798569,1.19913981,3817.8,3817.3,0.00571597]
[1760683798798,0.66613492,3817.7,3817.3,0.00571597]
[1760683799001,0.04567438,3817.4,3817.3,0.00571597]
[1760683799212,0.04567438,3817.4,3817.3,3.0703686]
[1760683799509,2.862,3817.9,3816.3,0.05786601]
[1760683799711,0.57867084,3817.8,3816.3,0.05786601]
[1760683799946,0.228,3817.7,3815.4,1.728]
[1760683800074,0.228,3817.7,3815.5,0.02620888]
[1760683800270,0.57867084,3817.8,3817.4,2.61957588]
[1760683800488,2.866,3817.7,3815.9,0.6336]
[1760683800706,2.866,3817.7,3817.0,2.61984892]
[1760683800910,0.04566855,3817.8,3816.9,0.1152]
[1760683801108,1.19886519,3818.4,3816.9,0.1152]
[1760683801281,0.41096404,3818.5,3817.2,1.728]
[1760683801483,0.41096404,3818.5,3817.1,2.61978989]
[1760683801484,0.05817062,3818.5,3818.4,2.61889796]
[1760683801684,1.78168389,3819.7,3818.4,2.61889796]
[1760683801685,1.33626292,3819.8,3819.6,2.61804574]
[1760683801995,2.22710487,3820.9,3818.9,1.728]
[1760683801996,4.20726292,3820.0,3818.9,1.728]
[1760683802171,4.20726292,3820.0,3818.8,2.61861147]
[1760683802367,1.78168389,3820.5,3818.5,2.3616]
[1760683802368,6.65140033,3819.9,3818.5,2.3616]
[1760683802568,6.65140033,3819.9,3818.6,0.0261876]
[1760683802772,1.33450033,3819.5,3818.4,1.93]
[1760683803108,1.33450033,3819.0,3818.7,2.61867939]
[1760683803292,5.3169,3819.9,3818.4,1.93]
[1760683803293,1.33450033,3819.1,3818.4,1.93]
[1760683803499,2.871,3819.0,3818.4,1.93]
[1760683804082,1.33450033,3819.4,3818.4,3.658]
[1760683804306,6.65140033,3819.9,3819.5,2.61810767]
[1760683804475,5.3169,3819.9,3819.6,0.02618075]
[1760683804679,1.33450033,3821.0,3820.0,0.6336]
[1760683804998,1.78168389,3821.5,3820.2,1.728]
[1760683804999,1.33450033,3821.5,3820.2,1.728]
[1760683805171,1.33450033,3821.6,3818.9,1.728]
[1760683805373,2.875,3821.5,3821.2,2.61697359]
[1760683805712,1.78168389,3822.2,3820.7,2.6172741]
[1760683805713,1.33450033,3821.9,3820.7,2.6172741]
[1760683805872,1.77720033,3821.8,3819.3,1.728]
[1760683806082,1.33450033,3821.6,3818.7,4.605]
[1760683806405,1.33450033,3821.6,3817.7,2.748]
[1760683806406,1.33450033,3821.0,3817.7,12.96851798]
[1760683806609,1.33450033,3820.6,3818.0,2.876]
[1760683806780,0.4427,3820.5,3817.0,12.96851798]
[1760683806982,1.33450033,3820.2,3816.7,2.62004427]
[1760683807184,0.4427,3820.4,3817.0,15.58831674]
[1760683807185,1.33450033,3819.9,3817.0,15.58831674]
[1760683807382,1.33450033,3820.2,3818.5,0.02618829]
[1760683807605,1.33450033,3820.2,3818.0,0.02619172]
[1760683807821,1.33450033,3820.1,3818.5,0.02618829]
[1760683807997,1.33450033,3820.4,3818.5,0.02618829]
[1760683808194,1.33450033,3820.6,3819.8,2.61792934]
[1760683808414,1.33450033,3820.7,3819.2,2.61834837]
[1760683808617,1.33450033,3820.7,3818.4,4.54888223]
[1760683808618,1.33450033,3820.6,3818.6,2.61872357]
[1760683808826,1.33450033,3820.5,3818.4,1.93]
[1760683808992,1.33450033,3820.6,3818.5,2.64501767]
[1760683809195,0.045639,3821.5,3818.5,2.64501767]
[1760683809196,1.33450033,3821.6,3820.8,2.61724087]
[1760683809435,2.884,3822.4,3820.0,0.02617801]
[1760683809644,2.884,3822.4,3821.2,0.1304]
[1760683809645,0.1304,3821.8,3821.2,0.1304]
[1760683809935,0.3567,3821.7,3820.0,2.6177883]
[1760683810234,0.27192456,3821.7,3819.4,0.6336]
[1760683810405,0.27192456,3821.7,3818.6,12.96851798]
[1760683810406,0.27192456,3821.7,3819.9,2.61786833]
[1760683810595,0.27192456,3821.7,3817.9,15.58871232]
[1760683810596,0.4427,3821.6,3817.9,15.58871232]
[1760683810794,2.77250033,3821.5,3820.4,2.61751965]
[1760683811032,0.04562456,3821.7,3820.5,0.02617458]
[1760683811262,0.04562456,3821.7,3820.3,0.6336]
[1760683811430,0.04562456,3821.7,3820.5,0.6336]
[1760683811735,2.884,3822.2,3821.0,0.6336]
[1760683811942,2.884,3822.2,3821.5,2.61677127]
[1760683812144,2.884,3822.2,3819.9,3.12952868]
[1760683812145,1.33450033,3821.8,3818.7,12.96851798]
[1760683812323,1.33450033,3821.5,3818.7,0.52268846]
[1760683812528,1.77720033,3821.4,3818.4,1.93]
[1760683812703,1.33450033,3821.1,3818.4,1.95618897]
[1760683812901,1.33450033,3821.1,3819.3,2.61825973]
[1760683813102,1.33450033,3821.1,3818.4,1.93]
[1760683813103,0.4427,3821.0,3818.4,1.93]
[1760683813301,0.2263,3820.9,3819.2,2.61834441]
[1760683813638,0.5341607,3820.8,3818.4,1.93]
[1760683813843,0.9768607,3820.7,3818.5,0.02618829]
[1760683814040,2.67,3820.7,3818.7,2.61869222]
[1760683814211,1.33450033,3821.8,3819.9,1.728]
[1760683814411,0.53434366,3821.7,3820.2,2.3616]
[1760683814712,0.53434366,3821.7,3820.0,0.02617801]
[1760683814713,0.4427,3822.7,3820.9,0.6336]
[1760683815096,0.53448176,3822.6,3820.3,13.804262]
[1760683815374,0.53448176,3822.6,3818.2,1.33782863]
[1760683815375,0.002,3823.4,3821.8,0.6336]
[1760683815675,0.002,3823.4,3823.3,3.24914154]
[1760683815875,0.002,3823.4,3823.3,5.00329695]
[1760683816484,0.002,3823.4,3821.9,2.61649055]
[1760683816686,0.002,3823.4,3822.4,1.728]
[1760683816891,0.002,3823.4,3822.3,0.02616225]
[1760683817182,0.002,3823.4,3821.9,0.6336]
[1760683817387,0.002,3823.4,3821.9,13.62828297]
[1760683817686,0.04759622,3823.4,3821.9,0.6336]
[1760683817884,0.04759622,3823.4,3822.5,12.96851798]
[1760683818085,0.002,3823.4,3823.3,3.24914154]
[1760683818451,0.002,3823.4,3822.6,1.728]
[1760683818655,0.002,3823.4,3821.7,2.61658786]
[1760683818862,0.002,3823.4,3822.7,2.61594181]
[1760683819096,0.002,3823.4,3822.4,0.02616157]
[1760683819408,0.002,3823.4,3821.6,2.61666635]
[1760683819409,0.002,3823.4,3821.7,0.6336]
[1760683819709,0.002,3823.4,3820.9,2.61714926]
[1760683819710,0.002,3823.4,3820.2,2.61760087]
[1760683819888,0.002,3823.4,3819.3,13.05004124]
[1760683819889,0.4427,3823.3,3820.3,1.947]
[1760683820213,0.4427,3823.3,3821.1,2.61703381]
[1760683820360,0.002,3823.4,3821.2,4.64716978]
[1760683820562,0.4447,3823.4,3820.6,4.34538993]
[1760683820783,0.04560159,3823.3,3821.8,2.61655493]
[1760683820984,0.04560159,3823.3,3822.0,2.61642113]
[1760683821190,0.04560159,3823.3,3822.2,2.61629428]
[1760683821392,0.04560159,3823.3,3821.6,0.6336]
[1760683821695,0.04560159,3823.3,3821.7,0.02616636]
[1760683821998,0.002,3823.4,3823.3,2.61554154]
[1760683822375,0.002,3823.4,3823.3,5.00329695]
[1760683822564,0.002,3823.4,3823.3,13.05685995]
[1760683822759,0.002,3823.4,3823.3,8.85200454]
[1760683822960,0.002,3823.4,3823.3,4.97714154]
[1760683823155,0.002,3823.4,3823.3,7.86914154]
[1760683823399,0.002,3823.4,3823.3,4.97714154]
[1760683823566,0.002,3823.4,3823.3,2.61554154]
[1760683824395,0.002,3823.4,3823.1,3.24924569]
[1760683824596,0.002,3823.4,3823.3,4.97714154]
[1760683825114,0.002,3823.4,3823.3,10.52188054]
[1760683825263,0.002,3823.4,3823.3,7.04385054]
[1760683825459,0.002,3823.4,3823.3,4.97714154]
[1760683825702,0.002,3823.4,3823.3,5.00329695]
[1760683825919,0.002,3823.4,3823.3,7.89429695]
[1760683826067,0.002,3823.4,3823.3,7.86814154]
[1760683826279,0.002,3823.4,3823.3,8.55627154]
[1760683826478,0.002,3823.4,3823.3,7.23554154]
[1760683826740,0.002,3823.4,3823.3,4.34354154]
[1760683827025,0.002,3823.4,3823.3,2.61554154]
[1760683827179,0.045513,3823.3,3822.1,0.02616362]
[1760683827530,0.045513,3823.3,3823.2,2.61560996]
[1760683827915,0.045513,3823.3,3821.2,2.61695378]
[1760683828215,0.045513,3823.3,3823.2,2.61560996]
[1760683828812,0.045513,3823.3,3823.2,4.36976605]
[1760683829111,0.045513,3823.3,3823.2,4.34360996]
[1760683829315,0.045513,3823.3,3820.1,2.61771387]
[1760683829316,0.512513,3823.3,3820.1,2.61771387]
[1760683829511,0.045513,3823.3,3821.0,4.800574]
[1760683829813,0.045513,3823.3,3823.2,2.61560996]
[1760683830419,1e-08,3823.3,3823.2,2.64176605]
[1760683830629,0.002,3823.4,3823.3,2.61554154]
[1760683830831,0.2195,3825.9,3823.5,0.6336]
[1760683830832,0.6865,3825.9,3823.5,0.6336]
[1760683830981,0.04557065,3826.0,3825.9,3.24736408]
[1760683831179,0.2195,3828.0,3825.9,2.3616]
[1760683831430,0.04555927,3827.5,3826.1,0.6336]
[1760683831685,0.467,3827.6,3827.1,2.61294452]
[1760683832011,0.2195,3827.8,3827.1,3.24654452]
[1760683832323,0.2195,3827.8,3827.1,2.61294452]
[1760683832685,0.2195,3827.8,3826.7,2.61316843]
[1760683833029,0.2195,3827.8,3827.0,2.61301157]
[1760683833230,0.467,3827.6,3826.4,0.6336]
[1760683833435,0.04555069,3827.7,3826.4,0.6336]
[1760683833436,0.04555069,3827.7,3826.4,2.3616]
[1760683833583,0.04555069,3827.7,3826.2,2.891]
[1760683833802,0.467,3827.5,3826.6,2.613221]
[1760683834006,0.2195,3826.7,3825.6,2.61394247]
[1760683834207,0.467,3826.6,3824.4,2.891]
[1760683834443,0.467,3826.5,3824.5,2.9171472]
[1760683834936,0.467,3826.4,3825.4,2.61410303]
[1760683835152,0.467,3826.4,3825.4,2.61407574]
[1760683835355,0.2195,3826.7,3825.5,0.02614037]
[1760683835557,0.2195,3826.7,3825.9,2.61374234]
[1760683835722,0.2195,3826.7,3825.6,0.02613969]
[1760683836046,0.2195,3826.7,3825.4,0.6336]
[1760683836259,0.467,3826.6,3823.3,1.64536781]
[1760683836407,0.467,3826.5,3823.4,1.49569564]
[1760683836609,0.467,3826.4,3824.8,2.6145138]
[1760683836904,0.467,3826.3,3822.3,2.61622583]
[1760683837109,0.26506447,3826.7,3823.0,2.61572679]
[1760683837342,0.467,3826.2,3824.2,2.61491413]
[1760683837570,0.467,3826.1,3823.5,2.61540473]
[1760683837717,0.2195,3826.7,3823.6,0.57629383]
[1760683837916,0.04557261,3825.5,3823.6,1.728]
[1760683838144,0.04557261,3825.5,3824.3,2.61478925]
[1760683838145,0.6865,3825.4,3824.3,2.61478925]
[1760683838311,0.6865,3825.4,3820.8,14.98004124]
[1760683838312,0.2195,3824.4,3820.8,14.98004124]
[1760683838512,0.2195,3824.4,3823.5,2.61538386]
[1760683838748,0.467,3824.3,3822.9,2.61578961]
[1760683838922,0.467,3824.3,3821.4,2.61684199]
[1760683838923,0.467,3824.3,3822.1,2.726]
[1760683839112,0.467,3824.2,3822.3,2.61620962]
[1760683839311,0.467,3824.1,3822.9,2.61581022]
[1760683839542,0.467,3824.1,3821.8,1.75416568]
[1760683839725,0.04559516,3823.9,3821.6,2.61669769]
[1760683839927,0.04559516,3823.9,3821.0,2.61711593]
[1760683839928,0.6865,3823.8,3821.0,2.61711593]
[1760683840150,0.467,3823.7,3821.1,0.76522878]
[1760683840349,0.1304,3822.4,3821.9,2.61647096]
[1760683840649,0.2195,3823.2,3821.7,0.02616636]
[1760683840816,0.1304,3822.9,3822.4,2.61615738]
[1760683841011,0.1304,3822.9,3822.3,0.1304]
[1760683841216,0.2195,3823.2,3822.5,2.61607491]
[1760683841749,0.467,3824.0,3822.4,5.23231476]
[1760683841951,0.0455939,3823.8,3822.2,0.6336]
[1760683842159,0.467,3823.7,3820.6,2.61732987]
[1760683842359,0.467,3823.6,3821.0,1.728]
[1760683842570,0.467,3823.5,3820.9,0.45473299]
[1760683842780,0.467,3823.5,3821.1,0.02617047]
[1760683842939,0.467,3823.5,3822.5,0.001]
[1760683843480,0.04560299,3823.3,3822.5,0.001]
[1760683843775,0.04560299,3823.3,3822.5,2.61708517]
[1760683843972,0.04560299,3823.3,3822.5,0.001]
[1760683844754,0.2195,3822.6,3822.5,0.001]
[1760683845345,0.6865,3822.6,3822.5,0.001]
[1760683845540,0.2195,3823.9,3822.5,0.001]
[1760683845541,0.467,3823.3,3822.5,0.001]
[1760683845766,0.2195,3823.1,3822.5,0.001]
[1760683845972,0.52994547,3823.7,3822.5,0.001]
[1760683846284,0.2195,3823.9,3822.5,0.001]
[1760683846991,0.2195,3823.9,3822.9,2.61581404]
[1760683847194,0.2195,3823.9,3822.5,0.001]
[1760683847397,0.467,3823.8,3822.5,0.001]
[1760683847551,0.467,3823.8,3822.5,2.61707429]
[1760683847759,0.467,3823.8,3822.6,2.61601434]
[1760683847958,0.04560064,3823.6,3822.5,0.001]
[1760683848274,0.04560064,3823.6,3823.2,2.61558722]
[1760683848478,0.04560064,3823.6,3822.5,0.001]
[1760683848684,0.51260064,3823.6,3822.6,2.61601964]
[1760683848867,0.51260064,3823.6,3822.5,0.001]
[1760683849993,0.04560064,3823.6,3822.5,0.001]
[1760683850152,0.467,3823.5,3822.5,0.001]
[1760683850792,0.04560064,3823.6,3822.5,0.001]
[1760683850952,0.04560064,3823.6,3823.0,2.61570582]
[1760683851153,0.04560064,3823.6,3823.4,2.61546259]
[1760683851352,0.2195,3824.4,3822.5,2.61704325]
[1760683851353,0.1304,3823.9,3823.3,0.1304]
[1760683851588,0.1304,3823.9,3823.8,2.61519953]
[1760683851805,0.1304,3824.2,3823.6,0.1304]
[1760683852090,0.1304,3823.5,3822.9,0.1304]
[1760683852290,0.1304,3823.5,3822.9,2.74614836]
[1760683852499,0.2345,3823.7,3822.1,2.61729536]
[1760683852500,0.2345,3823.7,3822.1,0.001]
[1760683852705,0.475,3823.4,3822.1,0.001]
[1760683852906,0.2345,3822.6,3822.1,0.001]
[1760683853202,0.7095,3822.6,3822.1,0.001]
[1760683853397,0.475,3822.5,3822.1,0.001]
[1760683853785,0.475,3822.4,3822.1,0.001]
[1760683853986,0.2345,3822.6,3822.1,0.001]
[1760683854167,0.475,3822.3,3822.1,0.001]
[1760683854565,0.475,3822.2,3822.1,0.001]
[1760683854988,0.475,3822.2,3819.8,0.0011]
[1760683855204,0.475,3822.1,3819.7,2.61799749]
[1760683855406,0.475,3822.0,3818.8,0.6642431]
[1760683855569,0.2345,3821.9,3820.4,2.61751858]
[1760683855767,0.2345,3821.9,3819.8,1.728]
[1760683855768,0.2345,3821.9,3820.9,2.61717678]
[1760683856068,0.2345,3822.6,3821.7,2.61662926]
[1760683856379,2.879,3823.0,3821.0,0.6336]
[1760683856711,0.7095,3822.9,3821.0,0.6336]
[1760683856911,0.2345,3822.9,3821.2,1.728]
[1760683857204,0.475,3822.8,3822.0,2.61637119]
[1760683857411,0.475,3822.8,3821.9,2.61648385]
[1760683857593,0.2345,3822.9,3821.5,1.728]
[1760683857900,2.924607,3823.0,3821.7,1.728]
[1760683858103,2.924607,3823.0,3821.1,1.728]
[1760683858104,0.7095,3822.9,3821.1,1.728]
[1760683858301,0.7095,3822.9,3822.1,2.61635214]
[1760683858502,0.7095,3822.9,3821.4,0.6336]
[1760683858702,0.2345,3822.9,3821.1,2.3616]
[1760683858866,0.2345,3822.9,3821.1,0.23616]
[1760683859063,0.475,3822.8,3821.0,0.6336]
[1760683859265,2.924607,3823.0,3821.1,0.02617047]
[1760683859602,0.2345,3822.9,3821.9,2.61644493]
[1760683859780,0.475,3822.8,3820.3,2.758]
[1760683859966,0.475,3822.8,3821.4,1.728]
[1760683860167,0.475,3822.8,3821.1,1.728]
[1760683860367,0.475,3822.8,3821.4,4.34483621]
[1760683860697,0.475,3822.8,3821.3,1.728]
[1760683860904,2.924607,3823.0,3821.6,2.3616]
[1760683861215,0.4498,3823.9,3822.4,2.3616]
[1760683861425,2.873,3824.0,3823.6,2.61533633]
[1760683861426,0.04560098,3823.7,3823.6,2.61533633]
[1760683861592,2.873,3824.0,3823.0,2.3616]
[1760683861795,2.873,3824.0,3822.9,0.6336]
[1760683861979,0.002,3823.4,3823.3,4.97714154]
[1760683862181,0.002,3823.4,3823.3,19.04285769]
[1760683862414,0.4518,3826.1,3823.5,2.758]
[1760683862415,0.04557682,3825.4,3823.5,2.758]
[1760683862617,0.002,3823.8,3823.7,11.11240993]
[1760683862791,0.03,3826.0,3823.7,11.11240993]
[1760683862792,0.03,3826.0,3823.8,7.468577]
[1760683862997,0.002,3826.1,3825.2,0.6336]
[1760683863195,0.002,3826.1,3825.0,0.6336]
[1760683863418,0.002,3826.1,3824.7,3.24816791]
[1760683863618,0.002,3826.1,3825.7,2.6138543]
[1760683863782,0.002,3826.1,3825.4,2.61409897]
[1760683863994,0.002,3826.1,3825.3,0.6336]
[1760683864190,0.002,3826.1,3826.0,2.61369576]
[1760683864402,0.002,3826.1,3826.0,5.00143271]
[1760683864628,0.002,3826.1,3826.0,5.76295592]
[1760683864932,0.002,3826.1,3826.0,5.73681897]
[1760683865421,0.002,3826.1,3826.0,8.55680897]
[1760683865747,0.002,3826.1,3826.0,7.76174897]
[1760683865921,0.002,3826.1,3826.0,5.73681897]
[1760683866094,0.002,3826.1,3826.0,8.833193]
[1760683866441,0.002,3826.1,3826.0,4.34169576]
[1760683866604,0.002,3826.1,3826.0,4.99795792]
[1760683866928,0.002,3826.1,3826.0,4.36435792]
[1760683867142,0.002,3826.1,3826.0,7.86995792]
[1760683867425,0.002,3826.1,3826.0,5.39007196]
[1760683867653,0.002,3826.1,3826.0,12.23219896]
[1760683867830,0.002,3826.1,3826.0,11.11945396]
[1760683868132,0.40047954,3827.2,3827.1,4.34094452]
[1760683868305,0.40047954,3827.2,3827.1,7.21094452]
[1760683868513,0.2195,3828.7,3827.1,5.57939956]
[1760683868696,0.6693,3828.7,3827.8,2.6124329]
[1760683869102,0.04554037,3828.8,3828.4,2.61205725]
[1760683869301,0.04554037,3828.8,3827.8,0.02612466]
[1760683869523,0.4498,3829.4,3828.4,2.61205725]
[1760683869804,0.002,3830.0,3828.4,2.87326298]
[1760683869805,0.0455296,3829.5,3828.4,2.87326298]
[1760683869997,0.002,3830.0,3828.4,5.74226298]
[1760683870200,0.04752467,3830.0,3828.4,3.13020573]
[1760683870395,0.04752467,3830.0,3828.4,5.48005725]
[1760683870396,0.4498,3829.6,3828.4,5.48005725]
[1760683870839,0.04752467,3830.0,3827.1,0.98239956]
[1760683871008,0.2195,3828.8,3828.0,2.61231728]
[1760683871209,0.2195,3828.8,3826.7,2.61318766]
[1760683871210,0.2195,3828.8,3827.7,2.61252657]
[1760683871434,0.4498,3828.4,3826.2,3.610907]
[1760683871641,0.2195,3828.8,3826.3,4.6201349]
[1760683871952,0.2195,3828.8,3828.1,2.61220401]
[1760683872155,0.4498,3828.4,3827.6,2.61260319]
[1760683872356,0.4498,3828.4,3827.0,2.61297519]
[1760683872357,0.4498,3828.4,3825.5,2.61403738]
[1760683872568,0.2195,3828.8,3825.8,1.728]
[1760683872761,0.4953375,3829.2,3827.1,1.728]
[1760683872971,0.1304,3829.0,3828.4,2.74245725]
[1760683873125,0.2195,3828.8,3828.3,0.1304]
[1760683873333,0.2195,3828.8,3826.4,2.61339775]
[1760683873334,0.4498,3828.4,3827.7,2.61248013]
[1760683873570,0.4498,3828.4,3827.6,0.1304]
[1760683873571,0.1304,3828.3,3827.6,0.1304]
[1760683873744,0.1304,3827.5,3826.9,0.1304]
[1760683874067,0.1304,3827.5,3827.0,2.61300929]
[1760683874225,0.4498,3827.4,3825.9,2.61372125]
[1760683874429,0.1304,3826.9,3826.3,0.1304]
[1760683874759,0.1304,3826.9,3824.8,3.11210438]
[1760683874760,0.1304,3826.2,3823.0,13.05004124]
[1760683874936,0.4498,3826.1,3823.4,0.735]
[1760683875161,0.4498,3826.1,3823.8,1.728]
[1760683875376,0.4498,3826.0,3823.9,0.43432679]
[1760683875660,0.538,3825.9,3823.2,0.62]
[1760683875861,0.4498,3825.8,3821.3,2.61688119]
[1760683876087,0.4498,3825.8,3824.0,2.61505191]
[1760683876226,0.5835767,3825.9,3822.6,2.61596736]
[1760683876227,0.4498,3825.7,3822.6,2.61596736]
[1760683876421,0.4498,3825.6,3823.5,2.61535108]
[1760683876669,0.4498,3825.5,3823.2,2.61560029]
[1760683876830,0.4498,3825.4,3822.7,0.26159674]
[1760683877027,0.4498,3825.4,3822.0,0.02616431]
[1760683877265,0.04558446,3825.0,3822.3,1.728]
[1760683877426,0.04558446,3825.0,3821.6,2.75042552]
[1760683877427,0.6693,3824.9,3821.9,2.61648567]
[1760683877623,0.4498,3824.8,3822.1,2.61636273]
[1760683877828,0.2195,3824.9,3822.1,2.61636273]
[1760683877829,0.4498,3824.7,3822.4,2.61615738]
[1760683878162,0.4498,3824.7,3823.5,2.61535119]
[1760683878364,0.4498,3824.6,3823.0,2.61570671]
[1760683878577,0.4498,3824.5,3822.5,0.52585461]
[1760683878723,0.4498,3824.5,3823.0,2.6157395]
[1760683879040,0.4498,3824.4,3823.0,2.61571766]
[1760683879236,0.4498,3824.3,3822.1,2.61636273]
[1760683879446,0.4498,3824.3,3822.3,1.728]
[1760683879648,0.4498,3824.2,3821.6,0.001]
[1760683880028,0.04559794,3823.7,3822.1,2.61635437]
[1760683880275,0.04559794,3823.7,3822.4,2.61609229]
[1760683880276,0.6693,3823.6,3822.4,2.61609229]
[1760683880524,0.04559794,3823.7,3823.2,2.61559747]
[1760683880765,0.04559794,3823.7,3822.3,0.001]
[1760683880766,0.04559794,3823.7,3822.6,2.61595972]
[1760683880966,0.4498,3823.6,3822.3,0.001]
[1760683881652,0.04560181,3823.3,3822.3,0.001]
[1760683882328,0.4346,3823.2,3822.3,0.001]
[1760683882729,0.2221,3822.4,3822.3,0.001]
[1760683883152,0.2221,3823.1,3822.3,0.001]
[1760683883153,0.2221,3822.8,3822.3,0.001]
[1760683883736,0.4346,3822.7,3822.3,0.001]
[1760683884245,0.4346,3822.6,3822.3,0.001]
[1760683884779,0.2221,3822.8,3821.2,0.001]
[1760683884780,0.4346,3822.5,3821.2,0.001]
[1760683885331,0.4346,3822.5,3818.9,15.54002388]
[1760683885332,0.6336,3822.2,3818.9,15.54002388]
[1760683885672,0.6336,3822.2,3818.4,0.004]
[1760683885673,2.3616,3822.0,3819.0,1.55400239]
[1760683885872,2.3616,3821.8,3818.3,0.004]
[1760683886029,0.6336,3821.4,3817.8,15.54002388]
[1760683886374,2.3616,3821.2,3817.8,15.54002388]
[1760683886583,0.6336,3820.8,3817.1,15.54002388]
[1760683886748,0.6336,3820.6,3817.2,1.5841996]
[1760683886949,2.855,3821.9,3817.2,1.5841996]
[1760683886950,0.04564703,3820.4,3818.0,2.61917234]
[1760683887191,0.04564703,3820.4,3818.6,4.3467608]
[1760683887365,0.04564703,3820.4,3820.3,2.61759547]
[1760683887554,0.4346,3821.9,3820.3,2.61759547]
[1760683887555,0.4346,3821.9,3820.3,0.02617595]
[1760683887751,0.04562764,3821.6,3820.3,0.26438815]
[1760683888047,0.04562764,3821.6,3821.3,2.61688543]
[1760683888266,0.04562764,3821.6,3820.3,0.26438815]
[1760683889083,0.04562764,3821.6,3819.9,15.54002388]
[1760683889285,0.04562764,3821.6,3821.5,2.61677351]
[1760683889660,0.04562764,3821.6,3820.8,2.852]
[1760683889986,0.04562764,3821.6,3820.0,4.34580104]
[1760683889987,0.2221,3821.9,3820.2,15.54002388]
[1760683890159,0.2221,3821.9,3817.0,0.62958499]
[1760683890160,0.2221,3821.9,3819.8,0.004]
[1760683890486,0.4346,3822.1,3819.9,2.853]
[1760683890783,0.75961578,3822.4,3820.2,19.88568787]
[1760683890989,0.75961578,3822.4,3821.2,2.61693934]
[1760683891151,0.75961578,3822.4,3820.5,2.61745844]
[1760683891487,0.4346,3822.3,3820.0,0.28831794]
[1760683891647,0.4346,3822.3,3820.8,2.61723546]
[1760683891846,0.04562129,3822.0,3820.9,2.61717344]
[1760683892104,0.04562129,3822.0,3820.0,0.28831794]
[1760683892105,0.4346,3823.3,3821.2,15.54002388]
[1760683892392,0.04561503,3822.8,3822.3,2.61617378]
[1760683892551,0.04561503,3822.8,3822.7,2.61595207]
[1760683892892,0.04561503,3822.8,3821.3,1.728]
[1760683893092,2.054,3824.0,3823.1,2.61562603]
[1760683893093,2.4886,3824.0,3823.1,2.61562603]
[1760683893294,0.2221,3823.9,3822.2,0.02616294]
[1760683893463,0.2221,3823.9,3823.0,2.61573455]
[1760683893663,0.2221,3823.9,3822.3,1.728]
[1760683893880,3.2316,3824.6,3822.1,1.75416362]
[1760683894108,3.2316,3824.6,3822.3,2.61622583]
[1760683894109,0.6567,3824.1,3822.3,2.61622583]
[1760683894302,0.6567,3824.1,3823.4,2.61546347]
[1760683894486,0.6567,3824.1,3823.6,2.61530959]
[1760683894809,0.2221,3824.1,3823.3,2.61553457]
[1760683895009,0.1304,3823.6,3823.5,2.61540473]
[1760683895512,0.1304,3823.9,3823.3,0.1304]
[1760683895816,2.848,3824.9,3823.5,0.004]
[1760683896108,0.002,3826.1,3824.2,3.167993]
[1760683896312,0.002,3826.1,3824.5,1.728]
[1760683896510,0.002,3826.1,3824.6,0.02614651]
[1760683896718,0.002,3826.1,3825.5,2.61403265]
[1760683896880,0.002,3826.1,3824.3,0.004]
[1760683897076,0.002,3826.1,3824.7,2.61458415]
[1760683897400,0.002,3826.1,3826.0,2.61369576]
[1760683898513,0.002,3826.1,3826.0,4.37183271]
[1760683898713,0.002,3826.1,3826.0,4.34569576]
[1760683899106,0.002,3826.1,3826.0,4.34169576]
[1760683899621,0.002,3826.1,3825.1,0.004]
[1760683899814,0.002,3826.1,3826.0,2.61369576]
[1760683900298,0.002,3826.1,3826.0,4.34569576]
[1760683900516,0.002,3826.1,3826.0,4.34169576]
[1760683900903,0.002,3826.1,3825.6,1.728]
[1760683901133,0.002,3826.1,3825.2,4.16860438]
[1760683901134,0.002,3826.1,3825.2,3.28240239]
[1760683901415,0.002,3826.1,3824.7,2.843]
[1760683901616,0.002,3826.1,3824.5,2.843]
[1760683901920,0.4346,3826.0,3824.8,2.61451188]
[1760683902218,0.2221,3825.9,3824.3,1.81590322]
[1760683902427,0.2221,3825.9,3824.2,2.842]
[1760683902629,0.002,3826.1,3824.3,0.02614857]
[1760683902913,0.4346,3826.0,3824.9,2.61443671]
[1760683903227,0.002,3826.1,3824.9,1.728]
[1760683903520,0.4366,3826.1,3824.1,1.732]
[1760683903725,0.4366,3826.1,3823.2,2.6155752]
[1760683903726,0.4346,3826.0,3823.5,0.004]
[1760683904016,0.4346,3826.0,3823.6,0.02510218]
[1760683904211,0.2221,3825.9,3824.0,1.728]
[1760683904415,0.2221,3825.9,3824.5,2.61465537]
[1760683904620,0.4346,3825.8,3823.0,15.54402388]
[1760683904783,0.4346,3825.7,3823.1,1.58055917]
[1760683904979,0.4346,3825.7,3823.2,0.004]
[1760683905259,0.4346,3825.7,3823.3,2.844]
[1760683905383,0.4346,3825.7,3823.4,0.02615473]
[1760683905582,0.4346,3825.7,3824.0,2.61506276]
[1760683905782,0.73,3825.8,3824.2,0.1304]
[1760683905783,0.1304,3824.8,3824.2,0.1304]
[1760683905984,0.6567,3824.7,3822.3,0.001]
[1760683906409,0.04558959,3824.2,3822.5,2.6160885]
[1760683906615,1.7666,3824.1,3822.3,0.001]
[1760683907723,0.2221,3822.4,3822.3,0.001]
[1760683908124,0.2221,3822.9,3822.3,0.001]
[1760683908491,0.4346,3822.4,3822.3,0.001]
[1760683909006,0.48021207,3822.4,3821.9,0.001]
[1760683909206,0.4346,3822.3,3821.9,0.001]
[1760683909644,0.4346,3822.2,3821.9,0.001]
[1760683910142,0.4346,3822.1,3821.9,0.001]
[1760683910507,0.4346,3822.0,3821.9,0.001]